lending/lending_fUSD_20250121
["ID","MTS","AMOUNT","RATE_DAILY","PERIOD"]
[349911403,1737496245893,-500.0,0.00020979,2]
[349911404,1737496245902,-500.0,0.00020979,2]
[349911405,1737496245912,-500.0,0.00020979,2]
[349911406,1737496245923,-500.0,0.00020979,2]
[349911407,1737496245933,-500.0,0.00020979,2]
[349911408,1737496245943,-500.0,0.00020979,2]
[349911409,1737496245952,-500.0,0.00020979,2]
[349911410,1737496245962,-503.16154638,0.00020991,2]
[349911411,1737496245971,-24488.52504218,0.00020991,2]
[349911412,1737496245981,-195.84761223,0.00020999,2]
[349911413,1737496245990,-3943.0,0.00021,5]
[349911414,1737496246000,-1800.0,0.00021,8]
[349911415,1737496246009,-700.0,0.00021,2]
[349911417,1737496246020,-177.27211555,0.00021028,2]
[349911418,1737496246029,-24488.52504218,0.00021105,2]
[349911419,1737496246039,-153.14980159,0.00021123,2]
[349911420,1737496246049,-1269.0,0.00021135,2]
[349911421,1737496246058,-2018.0,0.00021135,2]
[349911422,1737496246067,-636.0,0.00021135,2]
[349911423,1737496246076,-567.0,0.00021135,2]
[349911424,1737496246085,-150.0,0.00021135,2]
[349911425,1737496246094,-1864.0,0.00021135,2]
[349911426,1737496246104,-907.0,0.00021135,2]
[349911427,1737496246113,-1261.0,0.00021135,2]
[349911428,1737496246122,-781.0,0.00021135,2]
[349911429,1737496246132,-2948.0,0.00021135,2]
[349911430,1737496246141,-3984.0,0.00021135,2]
[349911431,1737496246152,-537.0,0.00021135,2]
[349911432,1737496246164,-150.0,0.00021135,2]
[349911433,1737496246175,-3902.0,0.00021135,2]
[349911434,1737496246184,-1174.0,0.00021135,2]
[349911435,1737496246195,-150.0,0.00021135,2]
[349911436,1737496246204,-500.0,0.00021147,2]
[349911437,1737496246214,-267.74037415,0.00021152,2]
[349911438,1737496246223,-500.0,0.00021152,2]
[349911439,1737496246233,-500.0,0.00021152,2]
[349911440,1737496246242,-177.27211555,0.00021152,2]
[349911441,1737496246252,-500.0,0.00021152,2]
[349911442,1737496246261,-500.0,0.00021152,2]
[349911443,1737496246270,-500.0,0.00021152,2]
[349911444,1737496246280,-500.0,0.00021152,2]
[349911445,1737496246289,-500.0,0.00021152,2]
[349911446,1737496246298,-500.0,0.00021152,2]
[349911447,1737496246307,-500.0,0.00021152,2]
[349911448,1737496246317,-500.0,0.00021152,2]
[349911449,1737496246327,-500.0,0.00021152,2]
[349911450,1737496246336,-500.0,0.00021152,2]
[349911451,1737496246346,-500.0,0.00021152,2]
[349911452,1737496246355,-500.0,0.00021152,2]
[349911453,1737496246364,-1100.98,0.00021152,2]
[349911454,1737496246374,-500.0,0.00021152,2]
[349911455,1737496246384,-572.32,0.00021152,2]
[349911456,1737496246394,-898.36,0.00021152,2]
[349911457,1737496246405,-500.0,0.00021152,2]
[349911458,1737496246414,-964.32,0.00021152,2]
[349911459,1737496246426,-615.2,0.00021152,2]
[349911460,1737496246436,-500.0,0.00021152,2]
[349911461,1737496246446,-500.0,0.00021152,2]
[349911462,1737496246456,-500.0,0.00021152,2]
[349911463,1737496246465,-500.0,0.00021152,2]
[349911464,1737496246475,-500.0,0.00021152,2]
[349911465,1737496246485,-500.0,0.00021152,2]
[349911466,1737496246495,-952.39,0.00021152,2]
[349911467,1737496246504,-447.09519847,0.00021152,2]
[349911468,1737496246514,-166.2290204,0.00021152,2]
[349911469,1737496246524,-1087.46,0.00021152,2]
[349911470,1737496246534,-513.47198108,0.00021152,2]
[349911471,1737496246544,-500.0,0.00021152,2]
[349911472,1737496246555,-500.0,0.00021152,2]
[349911473,1737496246565,-508.84964815,0.00021152,2]
[349911474,1737496246574,-500.0,0.00021152,2]
[349911475,1737496246584,-500.0,0.00021152,2]
[349911476,1737496246594,-992.18,0.00021152,2]
[349911477,1737496246603,-500.0,0.00021152,2]
[349911478,1737496246612,-500.0,0.00021152,2]
[349911479,1737496246622,-500.0,0.00021152,2]
[349911480,1737496246631,-500.0,0.00021152,2]
[349911481,1737496246641,-500.0,0.00021152,2]
[349911482,1737496246651,-500.0,0.00021152,2]
[349911483,1737496246661,-500.0,0.00021152,2]
[349911484,1737496246670,-500.0,0.00021152,2]
[349911485,1737496246680,-501.48059,0.00021152,2]
[349911486,1737496246690,-500.0,0.00021152,2]
[349911487,1737496246699,-500.0,0.00021152,2]
[349911488,1737496246708,-664.82,0.00021152,2]
[349911489,1737496246718,-502.62028118,0.00021152,2]
[349911490,1737496246727,-500.0,0.00021152,2]
[349911491,1737496246737,-500.0,0.00021152,2]
[349911492,1737496246746,-500.0,0.00021152,2]
[349911493,1737496246755,-399.52451975,0.00021152,2]
[349911494,1737496246764,-967.24,0.00021152,2]
[349911495,1737496246774,-500.0,0.00021152,2]
[349911496,1737496246783,-500.0,0.00021152,2]
[349911497,1737496246792,-500.0,0.00021152,2]
[349911498,1737496246802,-500.0,0.00021152,2]
[349911499,1737496246811,-669.61,0.00021152,2]
[349911500,1737496246820,-500.0,0.00021152,2]
[349911501,1737496246830,-500.0,0.00021152,2]
[349911502,1737496246839,-154.83661892,0.00021153,2]
[349911503,1737496246849,-1369.19973162,0.00021154,2]
[349911504,1737496246858,-296.27404153,0.00021154,2]
[349911505,1737496246867,-1240.82,0.00021163,7]
[349911506,1737496246877,-1240.82,0.00021163,7]
[349911507,1737496246886,-500.0,0.00021178,2]
[349911508,1737496246895,-14389.46,0.000212,15]
[349911509,1737496246905,-15236.87493858,0.00021218,2]
[349911510,1737496246918,-9251.6501036,0.00021218,2]
[349911511,1737496246929,-150.0,0.00021222,2]
[349911512,1737496246939,-205.7092011,0.00021233,2]
[349911513,1737496246949,-150.0,0.00021249,2]
[349911514,1737496246959,-500.0,0.0002125,2]
[349911515,1737496246968,-500.0,0.0002125,2]
[349911516,1737496246978,-532.83,0.0002125,2]
[349911517,1737496246987,-500.0,0.0002125,2]
[349911518,1737496246997,-500.0,0.0002125,2]
[349911519,1737496247006,-500.0,0.0002125,2]
[349911520,1737496247015,-500.0,0.0002125,2]
[349911521,1737496247025,-500.0,0.0002125,2]
[349911522,1737496247035,-500.0,0.0002125,2]
[349911523,1737496247044,-166.817959,0.0002125,2]
[349911524,1737496247053,-525.961575,0.0002125,2]
[349911525,1737496247063,-500.0,0.0002125,2]
[349911526,1737496247072,-500.0,0.0002125,2]
[349911527,1737496247081,-500.0,0.0002125,2]
[349911528,1737496247091,-500.0,0.0002125,2]
[349911529,1737496247100,-500.0,0.0002125,2]
[349911530,1737496247109,-500.0,0.0002125,2]
[349911531,1737496247119,-500.0,0.0002125,2]
[349911532,1737496247128,-500.0,0.0002125,2]
[349911533,1737496247138,-500.0,0.0002125,2]
[349911534,1737496247198,-683.39,0.0002125,2]
[349911535,1737496247208,-500.0,0.0002125,2]
[349911536,1737496247217,-500.0,0.0002125,2]
[349911537,1737496247226,-500.0,0.0002125,2]
[349911538,1737496247236,-683.89,0.0002125,2]
[349911539,1737496247246,-500.0,0.0002125,2]
[349911540,1737496247255,-508.91,0.0002125,2]
[349911541,1737496247264,-500.0,0.0002125,2]
[349911542,1737496247274,-636.59,0.0002125,2]
[349911543,1737496247283,-500.0,0.0002125,2]
[349911544,1737496247292,-500.0,0.0002125,2]
[349911545,1737496247302,-904.99,0.0002125,2]
[349911546,1737496247311,-536.42,0.0002125,2]
[349911547,1737496247321,-500.0,0.0002125,2]
[349911548,1737496247331,-500.0,0.0002125,2]
[349911549,1737496247340,-1066.54,0.0002125,2]
[349911550,1737496247350,-678.18,0.0002125,2]
[349911551,1737496247359,-500.0,0.0002125,2]
[349911552,1737496247368,-715.61,0.0002125,2]
[349911553,1737496247378,-643.77,0.0002125,2]
[349911554,1737496247387,-500.0,0.0002125,2]
[349911555,1737496247396,-900.49,0.0002125,2]
[349911556,1737496247405,-500.0,0.0002125,2]
[349911557,1737496247414,-645.53,0.0002125,2]
[349911558,1737496247426,-500.0,0.0002125,2]
[349911559,1737496247436,-500.0,0.0002125,2]
[349911560,1737496247446,-500.0,0.0002125,2]
[349911561,1737496247455,-500.0,0.0002125,2]
[349911562,1737496247465,-207.88096402,0.0002125,2]
[349911563,1737496247474,-500.0,0.0002125,2]
[349911564,1737496247483,-500.0,0.0002125,2]
[349911565,1737496247492,-500.0,0.0002125,2]
[349911566,1737496247502,-516.41834029,0.0002125,2]
[349911567,1737496247511,-1435.17,0.0002125,2]
[349911568,1737496247520,-605.73,0.0002125,2]
[349911569,1737496247530,-1112.87,0.0002125,2]
[349911570,1737496247539,-500.0,0.0002125,2]
[349911571,1737496247548,-500.0,0.0002125,2]
[349911572,1737496247558,-568.41,0.0002125,2]
[349911573,1737496247567,-500.0,0.0002125,2]
[349911574,1737496247576,-500.0,0.0002125,2]
[349911575,1737496247585,-1731.9,0.0002125,2]
[349911576,1737496247595,-1066.78,0.0002125,2]
[349911577,1737496247604,-966.24,0.0002125,2]
[349911578,1737496247614,-500.0,0.0002125,2]
[349911579,1737496247623,-1320.96085699,0.0002125,2]
[349911580,1737496247653,-69.31914301,0.0002125,2]
[349911581,1737496247663,-500.0,0.0002125,2]
[349911582,1737496247674,-502.68269469,0.0002125,2]
[349911583,1737496247683,-1228.0,0.0002125,2]
[349911584,1737496247693,-500.0,0.0002125,2]
[349911585,1737496247702,-834.73,0.0002125,2]
[349911586,1737496247711,-504.32955491,0.0002125,2]
[349911587,1737496247720,-500.0,0.0002125,2]
[349911588,1737496247730,-500.0,0.0002125,2]
[349911589,1737496247740,-500.0,0.0002125,2]
[349911590,1737496247750,-2168.1,0.0002125,2]
[349911591,1737496247759,-614.21,0.0002125,2]
[349911592,1737496247768,-500.0,0.0002125,2]
[349911593,1737496247778,-500.0,0.0002125,2]
[349911594,1737496247787,-500.0,0.0002125,2]
[349911595,1737496247796,-500.0,0.0002125,2]
[349911596,1737496247806,-500.0,0.0002125,2]
[349911597,1737496247815,-500.0,0.0002125,2]
[349911598,1737496247824,-500.0,0.0002125,2]
[349911599,1737496247833,-861.42,0.0002125,2]
[349911600,1737496247843,-1326.22,0.0002125,2]
[349911601,1737496247853,-500.0,0.0002125,2]
[349911602,1737496247863,-500.0,0.0002125,2]
[349911603,1737496247873,-340.85341764,0.0002125,2]
[349911604,1737496247882,-500.0,0.0002125,2]
[349911605,1737496247891,-500.0,0.0002125,2]
[349911606,1737496247900,-2304.38,0.0002125,2]
[349911607,1737496247911,-500.0,0.0002125,2]
[349911608,1737496247920,-500.0,0.0002125,2]
[349911609,1737496247931,-500.0,0.0002125,2]
[349911610,1737496247940,-511.29,0.0002125,2]
[349911611,1737496247950,-500.0,0.0002125,2]
[349911612,1737496247960,-706.2,0.0002125,2]
[349911613,1737496247970,-500.0,0.0002125,2]
[349911614,1737496247979,-500.0,0.0002125,2]
[349911615,1737496247989,-500.0,0.0002125,2]
[349911616,1737496247998,-520.08,0.0002125,2]
[349911617,1737496248007,-500.0,0.0002125,2]
[349911618,1737496248018,-500.0,0.0002125,2]
[349911619,1737496248028,-500.0,0.0002125,2]
[349911620,1737496248038,-2729.88,0.0002125,2]
[349911621,1737496248047,-926.34,0.0002125,2]
[349911622,1737496248056,-500.0,0.0002125,2]
[349911623,1737496248066,-500.0,0.0002125,2]
[349911624,1737496248075,-577.04,0.0002125,2]
[349911625,1737496248084,-722.62,0.0002125,2]
[349911626,1737496248094,-510.32,0.0002125,2]
[349911627,1737496248104,-500.0,0.0002125,2]
[349911628,1737496248113,-1009.23,0.0002125,2]
[349911629,1737496248123,-500.0,0.0002125,2]
[349911630,1737496248132,-673.95,0.0002125,2]
[349911631,1737496248142,-1579.26,0.0002125,2]
[349911632,1737496248155,-500.0,0.0002125,2]
[349911633,1737496248164,-500.0,0.00021252,2]
[349911634,1737496248174,-787.13,0.00021252,2]
[349911635,1737496248184,-1910.74,0.00021252,2]
[349911636,1737496248195,-500.0,0.00021252,2]
[349911637,1737496248205,-3496.72,0.00021252,2]
[349911638,1737496248214,-500.0,0.00021252,2]
[349911639,1737496248224,-801.19,0.00021252,2]
[349911640,1737496248236,-683.38,0.00021252,2]
[349911641,1737496248247,-500.0,0.00021252,2]
[349911642,1737496248256,-1369.1,0.00021252,2]
[349911643,1737496248267,-500.0,0.00021252,2]
[349911644,1737496248276,-500.0,0.00021252,2]
[349911645,1737496248286,-500.0,0.00021252,2]
[349911646,1737496248295,-802.28,0.00021252,2]
[349911647,1737496248304,-835.18,0.00021252,2]
[349911648,1737496248315,-500.0,0.00021252,2]
[349911649,1737496248324,-500.0,0.00021252,2]
[349911650,1737496248334,-500.0,0.00021252,2]
[349911651,1737496248343,-1000.0,0.00021252,2]
[349911652,1737496248352,-603.77,0.00021252,2]
[349911653,1737496248362,-500.0,0.00021252,2]
[349911654,1737496248371,-961.09,0.00021252,2]
[349911655,1737496248380,-500.0,0.00021252,2]
[349911656,1737496248389,-554.0,0.00021253,2]
[349911657,1737496248400,-500.0,0.00021253,2]
[349911658,1737496248409,-500.0,0.00021253,2]
[349911659,1737496248419,-555.50322314,0.00021253,2]
[349911660,1737496248429,-500.0,0.00021253,2]
[349911661,1737496248439,-500.0,0.00021253,2]
[349911662,1737496248448,-500.0,0.00021253,2]
[349911663,1737496248458,-500.0,0.00021253,2]
[349911664,1737496248467,-500.0,0.00021253,2]
[349911665,1737496248476,-500.0,0.00021253,2]
[349911666,1737496248486,-500.0,0.00021253,2]
[349911667,1737496248496,-500.0,0.00021253,2]
[349911668,1737496248505,-500.0,0.00021253,2]
[349911669,1737496248515,-500.0,0.00021253,2]
[349911670,1737496248524,-520.18001536,0.00021253,2]
[349911671,1737496248534,-500.0,0.00021253,2]
[349911672,1737496248543,-500.0,0.00021253,2]
[349911673,1737496248553,-500.0,0.00021253,2]
[349911674,1737496248562,-500.0,0.00021253,2]
[349911675,1737496248572,-500.0,0.00021253,2]
[349911676,1737496248581,-500.0,0.00021253,2]
[349911677,1737496248591,-500.0,0.00021253,2]
[349911678,1737496248601,-500.0,0.00021253,2]
[349911679,1737496248610,-500.0,0.00021253,2]
[349911680,1737496248620,-500.0,0.00021253,2]
[349911681,1737496248630,-500.0,0.00021253,2]
[349911682,1737496248640,-500.0,0.00021253,2]
[349911683,1737496248650,-500.0,0.00021253,2]
[349911684,1737496248659,-500.0,0.00021253,2]
[349911685,1737496248669,-500.0,0.00021253,2]
[349911686,1737496248680,-503.5191488,0.00021253,2]
[349911687,1737496248692,-500.0,0.00021253,2]
[349911688,1737496248701,-500.0,0.00021253,2]
[349911689,1737496248711,-500.0,0.00021253,2]
[349911690,1737496248721,-500.0,0.00021253,2]
[349911691,1737496248731,-500.79644056,0.00021253,2]
[349911692,1737496248740,-504.76921992,0.00021253,2]
[349911693,1737496248750,-500.0,0.00021253,2]
[349911694,1737496248759,-500.0,0.00021253,2]
[349911695,1737496248769,-500.0,0.00021253,2]
[349911696,1737496248779,-524.26543937,0.00021253,2]
[349911697,1737496248789,-500.0,0.00021253,2]
[349911698,1737496248799,-501.92696633,0.00021253,2]
[349911699,1737496248808,-500.0,0.00021253,2]
[349911700,1737496248818,-500.0,0.00021253,2]
[349911701,1737496248827,-638.45228302,0.00021253,2]
[349911702,1737496248836,-501.45164206,0.00021253,2]
[349911703,1737496248846,-500.0,0.00021253,2]
[349911704,1737496248855,-500.0,0.00021253,2]
[349911705,1737496248864,-501.88695464,0.00021253,2]
[349911706,1737496248873,-500.0,0.00021253,2]
[349911707,1737496248883,-500.0,0.00021253,2]
[349911708,1737496248893,-500.0,0.00021253,2]
[349911709,1737496248902,-500.0,0.00021253,2]
[349911710,1737496248911,-500.0,0.00021253,2]
[349911711,1737496248921,-500.0,0.00021253,2]
[349911712,1737496248932,-500.0,0.00021253,2]
[349911713,1737496248942,-500.0,0.00021253,2]
[349911714,1737496248952,-505.90828923,0.00021253,2]
[349911715,1737496248963,-500.0,0.00021253,2]
[349911716,1737496248972,-500.0,0.00021253,2]
[349911717,1737496248981,-500.0,0.00021253,2]
[349911718,1737496248991,-500.0,0.00021253,2]
[349911719,1737496249001,-500.0,0.00021253,2]
[349911720,1737496249011,-500.0,0.00021253,2]
[349911721,1737496249020,-500.0,0.00021253,2]
[349911722,1737496249030,-500.0,0.00021253,2]
[349911723,1737496249040,-500.0,0.00021253,2]
[349911724,1737496249050,-500.0,0.00021253,2]
[349911725,1737496249059,-500.0,0.00021253,2]
[349911726,1737496249069,-500.0,0.00021253,2]
[349911727,1737496249079,-500.0,0.00021253,2]
[349911728,1737496249088,-398.74744331,0.00021253,2]
[349911729,1737496249098,-500.0,0.00021253,2]
[349911730,1737496249108,-500.0,0.00021253,2]
[349911731,1737496249117,-500.0,0.00021253,2]
[349911732,1737496249127,-500.0,0.00021253,2]
[349911733,1737496249138,-500.0,0.00021253,2]
[349911734,1737496249149,-175.75937977,0.00021253,2]
[349911735,1737496249163,-500.0,0.00021253,2]
[349911736,1737496249175,-500.0,0.00021253,2]
[349911737,1737496249186,-500.0,0.00021253,2]
[349911738,1737496249195,-500.0,0.00021253,2]
[349911739,1737496249205,-500.0,0.00021253,2]
[349911740,1737496249215,-500.0,0.00021253,2]
[349911741,1737496249225,-500.0,0.00021253,2]
[349911742,1737496249241,-569.31,0.00021253,2]
[349911743,1737496249258,-500.0,0.00021253,2]
[349911744,1737496249268,-500.0,0.00021253,2]
[349911745,1737496249277,-264.75067526,0.00021253,2]
[349911746,1737496249287,-500.0,0.00021253,2]
[349911747,1737496249297,-500.0,0.00021253,2]
[349911748,1737496249306,-500.0,0.00021253,2]
[349911749,1737496249316,-500.0,0.00021253,2]
[349911750,1737496249326,-500.0,0.00021253,2]
[349911751,1737496249335,-500.0,0.00021253,2]
[349911752,1737496249345,-500.0,0.00021253,2]
[349911753,1737496249355,-577.52062442,0.00021253,2]
[349911754,1737496249365,-500.0,0.00021253,2]
[349911755,1737496249375,-500.0,0.00021253,2]
[349911756,1737496249386,-500.0,0.00021253,2]
[349911757,1737496249397,-500.0,0.00021253,2]
[349911758,1737496249407,-500.0,0.00021253,2]
[349911759,1737496249417,-500.0,0.00021253,2]
[349911760,1737496249428,-500.0,0.00021253,2]
[349911761,1737496249439,-500.0,0.00021253,2]
[349911762,1737496249449,-500.0,0.00021253,2]
[349911763,1737496249459,-500.0,0.00021253,2]
[349911764,1737496249469,-500.0,0.00021253,2]
[349911765,1737496249479,-500.0,0.00021253,2]
[349911766,1737496249488,-500.0,0.00021253,2]
[349911767,1737496249498,-500.0,0.00021253,2]
[349911768,1737496249508,-500.0,0.00021253,2]
[349911769,1737496249518,-500.0,0.00021253,2]
[349911770,1737496249528,-500.0,0.00021253,2]
[349911771,1737496249538,-500.0,0.00021253,2]
[349911772,1737496249547,-632.89,0.00021253,2]
[349911773,1737496249557,-500.0,0.00021253,2]
[349911774,1737496249567,-500.0,0.00021253,2]
[349911775,1737496249577,-500.0,0.00021253,2]
[349911776,1737496249587,-500.0,0.00021253,2]
[349911777,1737496249597,-500.0,0.00021253,2]
[349911778,1737496249607,-525.66,0.00021253,2]
[349911779,1737496249618,-500.0,0.00021253,2]
[349911780,1737496249627,-500.0,0.00021253,2]
[349911781,1737496249637,-500.0,0.00021253,2]
[349911782,1737496249646,-542.54,0.00021253,2]
[349911783,1737496249656,-500.0,0.00021253,2]
[349911784,1737496249665,-500.0,0.00021253,2]
[349911785,1737496249675,-500.0,0.00021253,2]
[349911786,1737496249684,-500.0,0.00021253,2]
[349911787,1737496249694,-271.28025313,0.00021253,2]
[349911788,1737496249703,-205.0,0.0002126,2]
[349911789,1737496249713,-207.0,0.0002126,2]
[349911790,1737496249723,-151.66174738,0.00021273,2]
[349911791,1737496249732,-164.5875029,0.00021273,2]
[349911792,1737496249742,-177.27211555,0.00021276,2]
[349911793,1737496249751,-150.0,0.00021277,2]
[349911794,1737496249760,-296.27404153,0.00021278,2]
[349911795,1737496249770,-447.88,0.00021285,2]
[349911796,1737496249779,-5062.29,0.0002129,6]
[349911797,1737496249788,-569.33,0.00021299,2]
[349911798,1737496249797,-151.0,0.00021299,2]
[349911799,1737496249807,-485.66334,0.00021299,2]
[349911800,1737496249816,-999.0,0.00021299,2]
[349911801,1737496249826,-150.0,0.000213,2]
[349911802,1737496249835,-1160943.30829456,0.000213,15]
[349911803,1737496249850,-1089.87349614,0.000213,15]
[349911804,1737496249862,-1812.28551801,0.000213,15]
[349911805,1737496249878,-5330.64,0.000213,15]
[349911806,1737496249890,-3529.46911129,0.000213,15]
[349911809,1737496714667,224.75,0.00010137,2]
[349911810,1737497154131,-163.63,0.00012329,2]
[349911811,1737497154152,-81.49614377,0.00018423,2]
[349911812,1737497242091,-293.61780207,0.00015,2]
[349911813,1737497250089,-256.38219793,0.00015,2]
[349911814,1737497250112,-291.06781028,0.00018423,2]
[349911815,1737497269294,1000.0,0.00020211,60]
[349911816,1737497335658,4000.0,0.00018,3]
[349911817,1737497347084,-130.07604595,0.00018423,2]
[349911818,1737497347105,-700.46283171,0.000185,2]
[349911823,1737497354088,-150.93605357,0.000185,2]
[349911824,1737497362109,-190.7407838,0.000185,2]
[349911825,1737497363134,-218.1337205,0.000185,2]
[349911827,1737497431916,-486.622928,0.000185,2]
[349911828,1737497431942,-311.66262901,0.000185,2]
[349911829,1737497432190,-39.44105341,0.000185,2]
[349911830,1737497432200,-737.30759438,0.00019945,2]
[349911831,1737497432211,-262.69240562,0.00019945,2]
[349911832,1737497432221,-4000.0,0.00019998,2]
[349911833,1737497432231,-250.0,0.00020053,2]
[349911834,1737497432240,-177.01,0.00020116,2]
[349911835,1737497432250,-798.29,0.00020198,2]
[349911836,1737497432259,-158.13,0.00020235,2]
[349911837,1737497432269,-250.0,0.00020255,2]
[349911838,1737497432278,-187.31,0.00020434,2]
[349911839,1737497432287,-773.11,0.00020441,2]
[349911840,1737497432297,-505.18,0.00020441,2]
[349911841,1737497432306,-773.11,0.000205,2]
[349911842,1737497432315,-773.11,0.000205,2]
[349911843,1737497432324,-438.48,0.000205,2]
[349911844,1737497432333,-438.48,0.000205,2]
[349911845,1737497432343,-773.11,0.000205,2]
[349911846,1737497432353,-773.11,0.000205,2]
[349911847,1737497432362,-773.11,0.000205,2]
[349911848,1737497432372,-773.11,0.000205,2]
[349911849,1737497432381,-156.73,0.00020609,30]
[349911850,1737497432391,-536.287,0.00020686,2]
[349911851,1737497432399,-502.64,0.00020686,2]
[349911852,1737497432408,-777.01,0.000207,2]
[349911853,1737497432417,-476.61139676,0.000208,2]
[349911854,1737497432427,-240.3540921,0.00020803,2]
[349911855,1737497432436,-224.98272455,0.00020809,2]
[349911857,1737497432446,-200.0,0.00020812,2]
[349911859,1737497432455,-200.0,0.00020821,2]
[349911860,1737497432464,-224.98272455,0.00020821,2]
[349911861,1737497432474,-200.0,0.0002085,2]
[349911862,1737497432483,-240.3540921,0.0002085,2]
[349911863,1737497432493,-240.3540921,0.00020865,2]
[349911864,1737497432502,-200.0,0.00020872,2]
[349911865,1737497432513,-1000.0,0.00020876,2]
[349911866,1737497432526,-500.0,0.00020878,2]
[349911867,1737497432535,-202.28640629,0.00020878,2]
[349911869,1737497432544,-500.0,0.00020878,2]
[349911871,1737497432553,-500.0,0.00020878,2]
[349911873,1737497432563,-405.41327207,0.00020878,2]
[349911875,1737497432572,-500.0,0.00020878,2]
[349911877,1737497432581,-391.26297662,0.00020878,2]
[349911879,1737497432592,-426.149066,0.00020878,2]
[349911881,1737497432602,-500.0,0.00020878,2]
[349911883,1737497432611,-500.0,0.00020878,2]
[349911885,1737497432620,-500.0,0.00020878,2]
[349911887,1737497432629,-500.0,0.00020878,2]
[349911889,1737497432637,-500.0,0.00020878,2]
[349911891,1737497432647,-500.0,0.00020878,2]
[349911893,1737497432656,-526.91950581,0.00020878,2]
[349911895,1737497432665,-500.0,0.00020878,2]
[349911897,1737497432674,-575.50446804,0.00020878,2]
[349911899,1737497432683,-500.0,0.00020878,2]
[349911901,1737497432693,-500.0,0.00020878,2]
[349911903,1737497432702,-500.0,0.00020878,2]
[349911905,1737497432711,-500.0,0.00020878,2]
[349911907,1737497432720,-293.03414097,0.00020878,2]
[349911909,1737497432730,-500.0,0.00020878,2]
[349911911,1737497432739,-500.0,0.00020878,2]
[349911913,1737497432748,-500.0,0.00020878,2]
[349911915,1737497432757,-500.0,0.00020878,2]
[349911917,1737497432767,-500.0,0.00020878,2]
[349911919,1737497432776,-500.0,0.00020878,2]
[349911920,1737497432786,-382.73433792,0.00020878,2]
[349912116,1737497437564,-117.26566208,0.00020878,2]
[349912118,1737497437573,-500.0,0.00020878,2]
[349912119,1737497437582,-210.07733784,0.00020878,2]
[349912120,1737497437671,-289.92266216,0.00020878,2]
[349912121,1737497437681,-500.0,0.00020878,2]
[349912122,1737497437691,-510.06874389,0.00020878,2]
[349912123,1737497437701,-500.0,0.00020878,2]
[349912124,1737497437710,-500.0,0.00020878,2]
[349912125,1737497437719,-500.0,0.00020878,2]
[349912126,1737497437729,-500.0,0.00020878,2]
[349912127,1737497437739,-500.0,0.00020878,2]
[349912128,1737497437748,-500.0,0.00020878,2]
[349912129,1737497437758,-500.0,0.00020878,2]
[349912130,1737497437767,-500.0,0.00020878,2]
[349912131,1737497437777,-500.0,0.00020878,2]
[349912132,1737497437788,-500.0,0.00020878,2]
[349912133,1737497437797,-500.0,0.00020878,2]
[349912134,1737497437807,-500.0,0.00020878,2]